fUSD/lending_fUSD_20250530
["ID","MTS","AMOUNT","RATE_DAILY","PERIOD"]
[363212138,1748624387137,-503894.0272086,0.000464,30]
[363212139,1748624387163,-150.0,0.00046409,30]
[363212140,1748624387189,-150.0,0.00046412,30]
[363212141,1748624387215,-150.0,0.0004642,30]
[363212142,1748624387240,-315.9652326,0.00046434,30]
[363212143,1748624387271,-263.02499752,0.00046434,30]
[363212144,1748624387297,-2000.0,0.00046438,120]
[363212145,1748624387323,-2000.0,0.00046438,120]
[363212146,1748624387350,-2000.0,0.00046438,120]
[363212147,1748624387379,-2000.0,0.00046438,120]
[363212148,1748624387405,-2000.0,0.00046438,120]
[363212149,1748624387432,-2000.0,0.00046438,120]
[363212150,1748624387458,-2000.0,0.00046438,120]
[363212151,1748624387484,-2000.0,0.00046438,120]
[363212152,1748624387511,-2000.0,0.00046438,120]
[363212153,1748624387537,-2000.0,0.00046438,120]
[363212154,1748624387562,-2000.0,0.00046438,120]
[363212155,1748624387589,-2000.0,0.00046438,120]
[363212156,1748624387614,-1467.07579671,0.00046438,120]
[363212157,1748624387638,-150.0,0.00046442,30]
[363212158,1748624387663,-150.0,0.00046472,30]
[363212159,1748624387688,-150.0,0.00046476,30]
[363212160,1748624387715,-315.9652326,0.00046481,30]
[363212161,1748624387740,-263.02499752,0.00046481,30]
[363212162,1748624387768,-16455.976847,0.00046487,120]
[363212163,1748624387793,-150.0,0.00046493,30]
[363212164,1748624387818,-3002.79,0.00046498,120]
[363212165,1748624387845,-4000.0,0.000465,110]
[363212166,1748624387870,-2152.63519226,0.000465,33]
[363212167,1748624387894,-1693.10662213,0.000465,30]
[363212168,1748624387919,-7778.50235668,0.000465,30]
[363212169,1748624387944,-2651.17872344,0.000465,30]
[363212170,1748624387969,-260.22037285,0.000465,33]
[363212171,1748624387994,-1294.02034767,0.000465,30]
[363212172,1748624388020,-160.0,0.000465,61]
[363212173,1748624388050,-5011.08,0.000465,120]
[363212174,1748624388077,-5000.92,0.000465,120]
[363212175,1748624388111,-2000.0,0.000465,120]
[363212176,1748624388137,-160.0,0.000465,61]
[363212177,1748624388162,-150.0,0.00046523,30]
[363212178,1748624388190,-315.9652326,0.00046528,30]
[363212179,1748624388217,-263.02499752,0.00046528,30]
[363212180,1748624388244,-78487.50105738,0.0004654,30]
[363212181,1748624388273,-150.0,0.00046549,120]
[363212182,1748624388300,-2000.0,0.0004657,120]
[363212183,1748624388326,-2000.0,0.0004657,120]
[363212184,1748624388356,-2014.87329607,0.0004657,120]
[363212185,1748624388381,-210.0,0.0004657,30]
[363212186,1748624388408,-225.0,0.0004657,30]
[363212187,1748624388434,-209.0,0.0004657,30]
[363212188,1748624388461,-208.0,0.0004657,30]
[363212189,1748624388487,-210.0,0.0004657,30]
[363212190,1748624388514,-294.0,0.0004657,30]
[363212191,1748624388540,-225.0,0.0004657,30]
[363212192,1748624388565,-212.0,0.0004657,30]
[363212193,1748624388592,-208.0,0.0004657,30]
[363212194,1748624388618,-210.0,0.0004657,30]
[363212195,1748624388645,-239.0,0.0004657,30]
[363212196,1748624388670,-225.0,0.0004657,30]
[363212197,1748624388696,-156.0,0.00046574,30]
[363212198,1748624388726,-8888.0,0.00046574,30]
[363212199,1748624388753,-500.0,0.00046575,120]
[363212200,1748624388781,-1077.0,0.00046575,30]
[363212201,1748624388810,-1077.0,0.00046575,30]
[363212202,1748624388839,-1077.0,0.00046575,30]
[363212203,1748624388866,-1077.0,0.00046575,30]
[363212204,1748624388894,-1077.0,0.00046575,30]
[363212205,1748624388920,-3000.0,0.00046575,120]
[363212206,1748624388946,-150.58435204,0.00046575,30]
[363212207,1748624388973,-229.53153188,0.00046575,30]
[363212208,1748624389001,-315.9652326,0.00046575,30]
[363212209,1748624389030,-263.02499752,0.00046575,30]
[363212210,1748624389055,-152.23806512,0.00046575,30]
[363212211,1748624389095,-152.34040952,0.00046575,30]
[363212212,1748624389126,-189.19433765,0.00046575,30]
[363212213,1748624389154,-180.8970892,0.00046575,30]
[363212214,1748624389181,-174.98858162,0.00046575,30]
[363212215,1748624389208,-159.70746532,0.00046575,30]
[363212216,1748624389238,-156.15923133,0.00046575,30]
[363212217,1748624389266,-153.13162216,0.00046575,30]
[363212218,1748624389295,-195.19980537,0.00046575,30]
[363212219,1748624389323,-1200.0,0.00046575,60]
[363212220,1748624389353,-3319.745,0.00046575,32]
[363212221,1748624389381,-2537.6219201,0.00046575,30]
[363212222,1748624389408,-300.0,0.00046575,30]
[363212223,1748624389435,-300.0,0.00046575,30]
[363212224,1748624389462,-342.92843436,0.00046575,30]
[363212225,1748624389489,-151.0,0.00046575,30]
[363212226,1748624389514,-151.0,0.00046575,30]
[363212227,1748624389541,-200.0,0.00046575,30]
[363212228,1748624389568,-207.4,0.00046575,30]
[363212229,1748624389601,-215.0738,0.00046575,30]
[363212230,1748624389627,-223.0315306,0.00046575,30]
[363212231,1748624389654,-231.28369723,0.00046575,30]
[363212232,1748624389680,-239.84119403,0.00046575,30]
[363212233,1748624389705,-248.71531821,0.00046575,30]
[363212234,1748624389734,-257.91778498,0.00046575,30]
[363212235,1748624389761,-267.46074303,0.00046575,30]
[363212236,1748624389787,-277.35679052,0.00046575,30]
[363212237,1748624389816,-287.61899177,0.00046575,30]
[363212238,1748624389844,-298.26089446,0.00046575,30]
[363212239,1748624389870,-309.29654756,0.00046575,30]
[363212240,1748624389897,-320.74051982,0.00046575,30]
[363212241,1748624390247,-332.60791905,0.00046575,30]
[363212242,1748624390280,-344.91441206,0.00046575,30]
[363212243,1748624390307,-357.6762453,0.00046575,30]
[363212244,1748624390333,-370.91026638,0.00046575,30]
[363212245,1748624390359,-384.63394623,0.00046575,30]
[363212246,1748624390385,-398.86540225,0.00046575,30]
[363212247,1748624390411,-178.0,0.00046575,30]
[363212248,1748624391732,150.0,0.00046575,30]
[363212253,1748624733180,3124.11315532,0.00025,120]
[363212254,1748624784383,1008.27,0.00018244,2]
[363212255,1748624793134,-250.0,0.0001955,2]
[363212256,1748624793156,-300.0,0.00019899,2]
[363212257,1748624793179,-1200.0,0.00019899,2]
[363212258,1748624793202,-3221.11532681,0.000199,2]
[363212259,1748624830091,-1778.88467319,0.000199,2]
[363212260,1748624830114,-19629.55,0.00019982,2]
[363212261,1748624830137,-172.24,0.00019999,2]
[363212262,1748624830159,-3930.0,0.0002,4]
[363212263,1748624830182,-8308.55,0.00020019,2]
[363212264,1748624830204,-533.03,0.00020061,2]
[363212265,1748624830231,-184.06,0.0002009,2]
[363212266,1748624830253,-150.0,0.00020105,7]
[363212267,1748624830274,-1236.74,0.00020108,2]
[363212268,1748624830295,-394.96,0.00020162,2]
[363212269,1748624830316,-1000.0,0.00020175,2]
[363212270,1748624830338,-1872.09,0.00020187,2]
[363212271,1748624830360,-200.0,0.00020239,2]
[363212272,1748624830382,-192.84,0.00020244,2]
[363212273,1748624830404,-3343.39842955,0.00020275,2]
[363212274,1748624830426,-250.0,0.00020398,2]
[363212275,1748624830449,-164.9,0.00020479,2]
[363212276,1748624830476,-1008.27,0.00020508,2]
[363212277,1748624830498,-150.0,0.00020553,2]
[363212278,1748624830520,-155.85,0.00020743,2]
[363212279,1748624830541,-208.01,0.0002077,2]
[363212280,1748624830564,-169.31,0.00020791,2]
[363212281,1748624830586,-155.85,0.00020795,2]
[363212282,1748624830615,-4679.98734313,0.000208,4]
[363212283,1748624830642,-4679.98734286,0.000208,4]
[363212284,1748624830663,-17414.93,0.00020836,2]
[363212285,1748624830686,-155.85,0.00020847,2]
[363212286,1748624830707,-846.35,0.00020986,2]
[363212287,1748624830732,-400.0,0.00021,2]
[363212288,1748624830753,-2738.91,0.00021034,2]
[363212289,1748624830782,-4679.98734286,0.0002121,4]
[363212290,1748624830804,-316.32135045,0.00021235,2]
[363212291,1748624830826,-172.24,0.00021369,2]
[363212292,1748624830847,-250.0,0.0002145,2]
[363212293,1748624830868,-151.0,0.00021498,2]
[363212294,1748624830890,-300.0,0.000216,7]
[363212295,1748624830914,-1500.0,0.00021644,2]
[363212296,1748624830937,-700.0,0.000217,7]
[363212297,1748624830959,-250.0,0.00021717,2]
[363212298,1748624830981,-846.35,0.00021773,2]
[363212299,1748624831005,-1680.0,0.00021774,2]
[363212300,1748624831026,-1100.0,0.000218,7]
[363212301,1748624831047,-1000.0,0.00021817,2]
[363212302,1748624831067,-2500.0,0.00021817,2]
[363212303,1748624831088,-228.86395453,0.00021817,2]
[363212304,1748624831109,-1846.5013742,0.00021817,2]
[363212307,1748624885399,197.78,0.00013699,2]
[363212439,1748625038307,-197.78,0.00020187,2]
[363212440,1748625038318,-376.86,0.00021125,2]
[363212441,1748625038328,-440.26,0.00021129,2]
[363212442,1748625038338,-8121.61894653,0.00021418,2]
[363212443,1748625038348,-1200.0,0.00021816,2]
[363212444,1748625038358,-1838.83915347,0.00021817,2]
[363212445,1748625038375,-119.47084653,0.00021817,2]
[363212446,1748625038385,-1164.6320169,0.00021817,2]
[363212447,1748625038404,-510.65280135,0.00021817,2]
[363212448,1748625038416,-824.71518175,0.00021817,2]
[363212449,1748625038426,-342.1439169,0.00021817,2]
[363212450,1748625038438,-1418.43545461,0.00021817,2]
[363212451,1748625038448,-188.35211161,0.00021817,2]
[363212452,1748625038458,-2973.05815977,0.00021817,2]
[363212453,1748625038467,-457.14981424,0.0002183,2]
[363212454,1748625038477,-1500.0,0.000219,7]
[363212455,1748625038487,-1719.62383108,0.000219,2]
[363212456,1748625038497,-1719.62383097,0.000219,2]
[363212457,1748625038507,-1719.62383097,0.000219,2]
[363212458,1748625038517,-1525.47224233,0.000219,6]
[363212459,1748625038528,-2686.51636636,0.000219,6]
[363212460,1748625038538,-1719.62383097,0.00021904,2]
[363212461,1748625038548,-727.84549082,0.00021905,2]
[363212462,1748625038557,-31641.10098729,0.00021907,2]
[363212463,1748625038567,-1264.85,0.00021907,2]
[363212464,1748625038577,-1264.85,0.00021907,2]
[363212465,1748625038587,-1526.54,0.00021907,2]
[363212466,1748625038597,-500.0,0.00021916,2]
[363212467,1748625038606,-500.0,0.00021916,2]
[363212468,1748625038616,-298.6416272,0.00021916,2]
[363212469,1748625038626,-500.0,0.00021916,2]
[363212470,1748625038636,-500.0,0.00021916,2]
[363212472,1748625038646,-500.0,0.00021916,2]
[363212474,1748625038656,-500.0,0.00021916,2]
[363212476,1748625038666,-500.0,0.00021916,2]
[363212477,1748625038675,-500.0,0.00021916,2]
[363212479,1748625038685,-500.0,0.00021916,2]
[363212481,1748625038696,-500.0,0.00021916,2]
[363212483,1748625038705,-500.0,0.00021916,2]
[363212485,1748625038714,-500.0,0.00021916,2]
[363212487,1748625038723,-500.0,0.00021916,2]
[363212489,1748625038733,-619.26268034,0.00021916,2]
[363212491,1748625038743,-500.0,0.00021916,2]
[363212493,1748625038753,-500.0,0.00021916,2]
[363212495,1748625038762,-500.0,0.00021916,2]
[363212497,1748625038771,-368.33933651,0.00021916,2]
[363212499,1748625038782,-500.0,0.00021916,2]
[363212501,1748625038791,-641.72546882,0.00021916,2]
[363212503,1748625038801,-458.37989476,0.00021916,2]
[363212505,1748625038812,-500.0,0.00021916,2]
[363212507,1748625038821,-500.0,0.00021916,2]
[363212509,1748625038831,-500.0,0.00021916,2]
[363212511,1748625038841,-6792.0,0.00021916,2]
[363212512,1748625038850,-420.0,0.00021917,2]
[363212513,1748625038860,-420.0,0.00021917,2]
[363212514,1748625038869,-420.0,0.00021917,2]
[363212515,1748625038879,-420.0,0.00021917,2]
[363212516,1748625038888,-421.88583108,0.00021917,2]
[363212517,1748625038898,-422.39859038,0.00021917,2]
[363212518,1748625038907,-420.0,0.00021917,2]
[363212519,1748625038916,-420.0,0.00021917,2]
[363212520,1748625038926,-420.0,0.00021917,2]
[363212521,1748625038935,-420.0,0.00021917,2]
[363212522,1748625038946,-420.0,0.00021917,2]
[363212523,1748625038955,-420.0,0.00021917,2]
[363212524,1748625038965,-420.0,0.00021917,2]
[363212525,1748625038975,-376.87845624,0.00021917,2]
[363212526,1748625038985,-501.47,0.00021917,2]
[363212527,1748625038994,-421.64703218,0.00021917,2]
[363212528,1748625039003,-421.36280734,0.00021917,2]
[363212529,1748625039013,-433.58,0.00021917,2]
[363212530,1748625039023,-420.0,0.00021917,2]
[363212531,1748625039031,-470.38901312,0.00021917,2]
[363212533,1748625039041,-420.0,0.00021917,2]
[363212535,1748625039054,-421.18563602,0.00021917,2]
[363212537,1748625039063,-420.0,0.00021917,2]
[363212539,1748625039073,-160.66923825,0.00021917,2]
[363212541,1748625039082,-543.68,0.00021917,2]
[363212543,1748625039092,-420.0,0.00021917,2]
[363212545,1748625039103,-420.0,0.00021917,2]
[363212547,1748625039113,-421.52636315,0.00021917,2]
[363212549,1748625039122,-212.61177819,0.00021917,2]
[363212550,1748625039131,-455.58,0.00021917,2]
[363212552,1748625039141,-420.0,0.00021917,2]
[363212554,1748625039150,-420.0,0.00021917,2]
[363212556,1748625039160,-422.88709366,0.00021917,2]
[363212558,1748625039169,-420.0,0.00021917,2]
[363212560,1748625039181,-420.0,0.00021917,2]
[363212562,1748625039190,-420.0,0.00021917,2]
[363212564,1748625039200,-423.00434322,0.00021917,2]
[363212565,1748625039209,-420.0,0.00021917,2]
[363212568,1748625039225,-420.0,0.00021917,2]
[363212571,1748625039240,-618.89,0.00021917,2]
[363212573,1748625039253,-420.0,0.00021917,2]
[363212575,1748625039265,-420.0,0.00021917,2]
[363212577,1748625039280,-420.0,0.00021917,2]
[363212580,1748625039294,-425.06389397,0.00021917,2]
[363212582,1748625039308,-420.0,0.00021917,2]
[363212585,1748625039322,-420.0,0.00021917,2]
[363212587,1748625039336,-420.0,0.00021917,2]
[363212589,1748625039349,-420.0,0.00021917,2]
[363212592,1748625039361,-421.24324169,0.00021917,2]
[363212594,1748625039375,-420.0,0.00021917,2]
[363212596,1748625039389,-420.0,0.00021917,2]
[363212599,1748625039402,-420.0,0.00021917,2]
[363212601,1748625039418,-420.0,0.00021917,2]
[363212604,1748625039432,-420.0,0.00021917,2]
[363212606,1748625039446,-420.0,0.00021917,2]
[363212608,1748625039460,-420.0,0.00021917,2]
[363212611,1748625039474,-420.0,0.00021917,2]
[363212613,1748625039487,-420.0,0.00021917,2]
[363212615,1748625039501,-420.0,0.00021917,2]
[363212617,1748625039512,-420.68961778,0.00021917,2]
[363212620,1748625039527,-420.0,0.00021917,2]
[363212622,1748625039541,-420.0,0.00021917,2]
[363212624,1748625039553,-221.63426305,0.00021917,2]
[363212627,1748625039566,-420.0,0.00021917,2]
[363212629,1748625039577,-420.0,0.00021917,2]
[363212631,1748625039589,-420.0,0.00021917,2]
[363212633,1748625039602,-420.0,0.00021917,2]
[363212636,1748625039617,-420.0,0.00021917,2]
[363212638,1748625039627,-420.0,0.00021917,2]
[363212640,1748625039638,-420.0,0.00021917,2]
[363212642,1748625039650,-420.0,0.00021917,2]
[363212644,1748625039665,-420.0,0.00021917,2]
[363212647,1748625039678,-420.0,0.00021917,2]
[363212649,1748625039688,-625.87,0.00021917,2]
[363212651,1748625039699,-420.0,0.00021917,2]
[363212653,1748625039711,-479.28,0.00021917,2]
[363212655,1748625039722,-173.09711764,0.00021917,2]
[363212661,1748625039771,-246.90288236,0.00021917,2]
[363212663,1748625039782,-420.0,0.00021917,2]
[363212665,1748625039795,-420.0,0.00021917,2]
[363212667,1748625039807,-420.0,0.00021917,2]
[363212670,1748625039819,-420.0,0.00021917,2]
[363212672,1748625039831,-420.0,0.00021917,2]
[363212674,1748625039843,-420.0,0.00021917,2]
[363212676,1748625039856,-420.0,0.00021917,2]
[363212679,1748625039868,-420.0,0.00021917,2]
[363212681,1748625039880,-422.67107001,0.00021917,2]
[363212683,1748625039892,-420.0,0.00021917,2]
[363212685,1748625039904,-420.0,0.00021917,2]
[363212688,1748625039918,-420.0,0.00021917,2]
[363212690,1748625039930,-425.59870004,0.00021917,2]
[363212692,1748625039942,-420.0,0.00021917,2]
[363212694,1748625039955,-420.0,0.00021917,2]
[363212697,1748625039967,-420.0,0.00021917,2]
[363212699,1748625039981,-420.0,0.00021917,2]
[363212701,1748625039993,-420.0,0.00021917,2]
[363212703,1748625040005,-420.0,0.00021917,2]
[363212705,1748625040017,-484.54788059,0.00021917,2]
[363212709,1748625040042,-18.19541815,0.00021917,2]
[363212711,1748625040054,-420.0,0.00021917,2]
[363212713,1748625040067,-420.0,0.00021917,2]
[363212715,1748625040079,-420.0,0.00021917,2]
[363212717,1748625040091,-500.0,0.00021917,2]
[363212720,1748625040103,-500.0,0.00021917,2]
[363212722,1748625040116,-500.0,0.00021917,2]
[363212724,1748625040128,-500.0,0.00021917,2]
[363212726,1748625040140,-500.0,0.00021917,2]
[363212729,1748625040152,-500.0,0.00021917,2]
[363212731,1748625040164,-500.0,0.00021917,2]
[363212733,1748625040176,-500.0,0.00021917,2]
[363212735,1748625040187,-420.0,0.00021917,2]
[363212738,1748625040200,-500.0,0.00021917,2]
[363212740,1748625040211,-500.0,0.00021917,2]
[363212742,1748625040223,-500.0,0.00021917,2]
[363212744,1748625040234,-500.0,0.00021917,2]
[363212747,1748625040246,-500.0,0.00021917,2]
[363212749,1748625040259,-500.0,0.00021917,2]
[363212751,1748625040271,-420.0,0.00021917,2]
[363212754,1748625040283,-420.0,0.00021917,2]
[363212756,1748625040295,-420.0,0.00021917,2]
[363212758,1748625040307,-500.0,0.00021917,2]
[363212762,1748625040319,-494.81019021,0.00021917,2]
[363212764,1748625040332,-420.0,0.00021917,2]
[363212766,1748625040344,-420.0,0.00021917,2]
[363212768,1748625040356,-420.0,0.00021917,2]
[363212771,1748625040368,-440.8883336,0.00021917,2]
[363212773,1748625040380,-420.0,0.00021917,2]
[363212775,1748625040392,-420.0,0.00021917,2]
[363212778,1748625040403,-556.69304932,0.00021917,2]
[363212780,1748625040417,-422.07758686,0.00021917,2]
[363212782,1748625040429,-420.0,0.00021917,2]
[363212784,1748625040440,-500.0,0.00021917,2]
[363212787,1748625040452,-500.0,0.00021917,2]
[363212789,1748625040464,-500.0,0.00021917,2]
[363212791,1748625040477,-592.03980536,0.00021917,2]
[363212793,1748625040489,-420.0,0.00021917,2]
[363212796,1748625040501,-420.0,0.00021917,2]
[363212798,1748625040512,-767.97,0.00021917,2]
[363212800,1748625040524,-420.0,0.00021917,2]
[363212802,1748625040536,-420.0,0.00021917,2]
[363212805,1748625040548,-420.0,0.00021917,2]
[363212807,1748625040560,-420.0,0.00021917,2]
[363212809,1748625040571,-420.0,0.00021917,2]
[363212811,1748625040583,-19.7456165,0.00021917,2]
[363213207,1748625044608,-850.0,0.00021418,2]
[363213209,1748625044620,-6173.41038609,0.00021418,2]
[363213211,1748625044630,-151.0,0.00021811,2]
[363213213,1748625044639,-179.35569268,0.000219,2]
[363213215,1748625044649,-392.17555417,0.000219,2]
[363213217,1748625044659,-300.0,0.00021916,2]
[363213220,1748625044673,-400.2543835,0.00021917,2]
[363213222,1748625044684,-420.0,0.00021917,2]
[363213224,1748625044694,-420.0,0.00021917,2]
[363213226,1748625044703,-420.81942403,0.00021917,2]
[363213228,1748625044713,-420.0,0.00021917,2]
[363213230,1748625044722,-423.12588588,0.00021917,2]
[363213232,1748625044731,-420.70503836,0.00021917,2]
[363213234,1748625044741,-420.0,0.00021917,2]
[363213236,1748625044750,-420.0,0.00021917,2]
[363213238,1748625044760,-420.0,0.00021917,2]
[363213240,1748625044769,-538.41,0.00021917,2]
[363213242,1748625044778,-420.0,0.00021917,2]
[363213244,1748625044787,-420.0,0.00021917,2]
[363213246,1748625044796,-420.0,0.00021917,2]
[363213248,1748625044806,-420.0,0.00021917,2]
[363213250,1748625044819,-420.0,0.00021917,2]
[363213252,1748625044828,-420.0,0.00021917,2]
[363213254,1748625044838,-420.0,0.00021917,2]
[363213255,1748625044847,-420.0,0.00021917,2]
[363213256,1748625044857,-420.0,0.00021917,2]
[363213257,1748625044867,-420.0,0.00021917,2]
[363213258,1748625044876,-420.0,0.00021917,2]
[363213259,1748625044886,-420.0,0.00021917,2]
[363213260,1748625044895,-420.0,0.00021917,2]
[363213261,1748625044905,-416.89624448,0.00021917,2]
[363213262,1748625044915,-420.0,0.00021917,2]
[363213263,1748625044925,-420.0,0.00021917,2]
[363213264,1748625044935,-420.0,0.00021917,2]
[363213265,1748625044945,-420.0,0.00021917,2]
[363213266,1748625044954,-420.0,0.00021917,2]
[363213267,1748625044964,-420.0,0.00021917,2]
[363213268,1748625044974,-420.0,0.00021917,2]
[363213269,1748625044988,-420.0,0.00021917,2]
[363213270,1748625044997,-420.0,0.00021917,2]
[363213271,1748625045009,-420.0,0.00021917,2]
[363213272,1748625045019,-420.0,0.00021917,2]
[363213273,1748625045028,-420.0,0.00021917,2]
[363213274,1748625045038,-420.0,0.00021917,2]
[363213275,1748625045048,-420.0,0.00021917,2]
[363213277,1748625045059,-420.0,0.00021917,2]
[363213279,1748625045069,-420.0,0.00021917,2]
[363213281,1748625045079,-420.0,0.00021917,2]
[363213283,1748625045090,-420.0,0.00021917,2]
[363213285,1748625045099,-500.0,0.00021917,2]
[363213287,1748625045108,-500.0,0.00021917,2]
[363213289,1748625045118,-500.0,0.00021917,2]
[363213291,1748625045128,-500.0,0.00021917,2]
[363213294,1748625045138,-500.0,0.00021917,2]
[363213295,1748625045147,-420.0,0.00021917,2]
[363213298,1748625045157,-500.0,0.00021917,2]
[363213301,1748625045169,-500.0,0.00021917,2]
[363213303,1748625045179,-500.0,0.00021917,2]
[363213304,1748625045189,-500.0,0.00021917,2]
[363213305,1748625045198,-500.0,0.00021917,2]
[363213306,1748625045207,-420.0,0.00021917,2]
[363213307,1748625045217,-420.0,0.00021917,2]
[363213308,1748625045226,-420.0,0.00021917,2]
[363213309,1748625045238,-420.0,0.00021917,2]
[363213310,1748625045247,-420.0,0.00021917,2]
[363213311,1748625045257,-420.0,0.00021917,2]
[363213312,1748625045266,-420.0,0.00021917,2]
[363213313,1748625045276,-420.0,0.00021917,2]
[363213314,1748625045285,-420.0,0.00021917,2]
[363213315,1748625045295,-420.0,0.00021917,2]
[363213317,1748625045305,-420.0,0.00021917,2]
[363213319,1748625045314,-420.0,0.00021917,2]
[363213321,1748625045323,-420.0,0.00021917,2]
[363213323,1748625045333,-438.06382155,0.00021917,2]
[363213325,1748625045343,-420.0,0.00021917,2]
[363213327,1748625045352,-398.60750414,0.00021917,2]
[363213329,1748625045363,-437.56671229,0.00021917,2]
[363213331,1748625045373,-420.0,0.00021917,2]
[363213333,1748625045382,-588.0,0.00021917,2]
[363213335,1748625045392,-420.0,0.00021917,2]
[363213337,1748625045401,-500.0,0.00021917,2]
[363213339,1748625045410,-1013.94878771,0.00021917,2]
[363213341,1748625045421,-517.12252397,0.00021917,2]
[363213343,1748625045430,-420.0,0.00021917,2]
[363213345,1748625045439,-420.0,0.00021917,2]
[363213347,1748625045449,-420.0,0.00021917,2]
[363213349,1748625045458,-420.0,0.00021917,2]
[363213351,1748625045467,-420.0,0.00021917,2]
[363213353,1748625045476,-420.0,0.00021917,2]
[363213355,1748625045485,-420.0,0.00021917,2]
[363213357,1748625045494,-420.0,0.00021917,2]
[363213359,1748625045504,-97.18015162,0.00021917,2]
[363213362,1748625045523,-322.81984838,0.00021917,2]
[363213364,1748625045532,-420.0,0.00021917,2]
[363213366,1748625045541,-420.0,0.00021917,2]
[363213368,1748625045551,-364.93620696,0.00021917,2]
[363213370,1748625045560,-420.0,0.00021917,2]
[363213372,1748625045570,-707.61,0.00021917,2]
[363213374,1748625045580,-420.0,0.00021917,2]
[363213376,1748625045589,-1693.06,0.00021917,2]
[363213378,1748625045599,-420.0,0.00021917,2]
[363213380,1748625045608,-420.0,0.00021917,2]
[363213382,1748625045618,-413.73438292,0.00021917,2]
[363213384,1748625045628,-420.0,0.00021917,2]
[363213386,1748625045638,-420.0,0.00021917,2]
[363213388,1748625045647,-420.0,0.00021917,2]
[363213390,1748625045657,-420.0,0.00021917,2]
[363213392,1748625045668,-420.0,0.00021917,2]
[363213394,1748625045679,-420.0,0.00021917,2]
[363213396,1748625045688,-420.0,0.00021917,2]
[363213398,1748625045698,-1227.8,0.00021917,2]
[363213400,1748625045708,-203.23956174,0.00021917,2]
[363213403,1748625045722,-216.76043826,0.00021917,2]
[363213405,1748625045732,-420.0,0.00021917,2]
[363213407,1748625045741,-420.0,0.00021917,2]
[363213409,1748625045751,-420.0,0.00021917,2]
[363213411,1748625045760,-420.0,0.00021917,2]
[363213413,1748625045770,-420.0,0.00021917,2]
[363213415,1748625045780,-63.68255958,0.00021917,2]
[363213419,1748625045811,-356.31744042,0.00021917,2]
[363213421,1748625045822,-500.0,0.00021917,2]
[363213423,1748625045832,-420.0,0.00021917,2]
[363213425,1748625045842,-500.0,0.00021917,2]
[363213427,1748625045854,-500.0,0.00021917,2]
[363213429,1748625045864,-500.0,0.00021917,2]
[363213431,1748625045874,-500.0,0.00021917,2]
[363213433,1748625045884,-500.0,0.00021917,2]
[363213435,1748625045894,-500.0,0.00021917,2]
[363213437,1748625045904,-420.0,0.00021917,2]
[363213439,1748625045916,-420.0,0.00021917,2]
[363213442,1748625045926,-500.0,0.00021917,2]
[363213444,1748625045936,-500.0,0.00021917,2]
[363213445,1748625045945,-500.0,0.00021917,2]
[363213447,1748625045955,-500.0,0.00021917,2]
[363213450,1748625045964,-500.0,0.00021917,2]
[363213451,1748625045975,-500.0,0.00021917,2]
[363213453,1748625045988,-500.0,0.00021917,2]
[363213456,1748625045999,-602.65740244,0.00021917,2]
[363213458,1748625046008,-773.15,0.00021917,2]